fUSD/lending_fUSD_20250217
["ID","MTS","AMOUNT","RATE_DAILY","PERIOD"]
[353397648,1739814647740,-500.0,0.0001378,2]
[353397649,1739814647750,-500.0,0.0001378,2]
[353397650,1739814647760,-626.17,0.0001378,2]
[353397651,1739814647769,-500.0,0.0001378,2]
[353397652,1739814647779,-500.0,0.0001378,2]
[353397653,1739814647789,-500.0,0.0001378,2]
[353397654,1739814647799,-500.0,0.0001378,2]
[353397655,1739814647808,-500.0,0.0001378,2]
[353397656,1739814647818,-500.0,0.0001378,2]
[353397657,1739814647829,-500.0,0.0001378,2]
[353397658,1739814647839,-821.51,0.0001378,2]
[353397659,1739814647849,-568.39578851,0.0001378,2]
[353397660,1739814649225,-500.0,0.00013698,2]
[353397661,1739814649236,-500.0,0.00013698,2]
[353397662,1739814649248,-500.0,0.00013698,2]
[353397663,1739814649262,-500.0067074,0.00013698,2]
[353397664,1739814649272,-584.23421149,0.0001378,2]
[353397665,1739814649283,-753.16,0.0001378,2]
[353397666,1739814649293,-240.84081426,0.0001378,2]
[353397667,1739814649586,-500.0,0.00013698,2]
[353397668,1739814649596,-500.0,0.00013698,2]
[353397669,1739814649606,-88.30168594,0.0001378,2]
[353397670,1739814649620,-929.3574998,0.0001378,2]
[353397671,1739814649630,-879.88,0.0001378,2]
[353397672,1739814649641,-500.0,0.0001378,2]
[353397673,1739814649652,-500.0,0.0001378,2]
[353397674,1739814649661,-249.29356845,0.0001378,2]
[353397675,1739814649673,-317.67327619,0.0001378,2]
[353397676,1739814649683,-503.59365442,0.0001378,2]
[353397677,1739814649693,-500.0,0.0001378,2]
[353397678,1739814649703,-26.69340609,0.0001378,2]
[353397679,1739814650567,-338.85771332,9.868e-05,2]
[353397680,1739814650577,-500.0,0.00013698,2]
[353397681,1739814650586,-500.0,0.00013698,2]
[353397682,1739814650596,-500.0,0.00013698,2]
[353397683,1739814650605,-2062.84659391,0.0001378,2]
[353397684,1739814650614,-2833.340189,0.0001378,2]
[353397685,1739814650623,-656.5,0.0001378,2]
[353397686,1739814650631,-888.75,0.0001378,2]
[353397687,1739814650641,-500.0,0.0001378,2]
[353397688,1739814650651,-500.0,0.0001378,2]
[353397689,1739814650660,-500.0,0.0001378,2]
[353397690,1739814650669,-500.0,0.0001378,2]
[353397691,1739814650678,-701.13,0.0001378,2]
[353397692,1739814650687,-500.0,0.0001378,2]
[353397693,1739814650696,-500.0,0.0001378,2]
[353397694,1739814650705,-478.08234217,0.0001378,2]
[353397695,1739814650715,-501.8247708,0.0001378,2]
[353397696,1739814650724,-500.0,0.0001378,2]
[353397697,1739814650732,-500.0,0.0001378,2]
[353397698,1739814650741,-500.0,0.0001378,2]
[353397699,1739814650751,-500.0,0.0001378,2]
[353397700,1739814650760,-500.0,0.0001378,2]
[353397701,1739814650769,-500.0,0.0001378,2]
[353397702,1739814650778,-755.97,0.0001378,2]
[353397703,1739814650787,-733.88,0.0001378,2]
[353397704,1739814650796,-500.0,0.0001378,2]
[353397705,1739814650805,-527.73,0.0001378,2]
[353397706,1739814650815,-500.0,0.0001378,2]
[353397707,1739814650827,-169.73,0.0001378,2]
[353397708,1739814650837,-570.11,0.0001378,2]
[353397709,1739814650846,-500.0,0.0001378,2]
[353397710,1739814650857,-500.0,0.0001378,2]
[353397711,1739814650866,-500.0,0.0001378,2]
[353397712,1739814650877,-500.0,0.0001378,2]
[353397713,1739814650886,-1133.7,0.0001378,2]
[353397714,1739814650896,-500.0,0.0001378,2]
[353397715,1739814650905,-500.0,0.0001378,2]
[353397716,1739814650916,-2235.24,0.0001378,2]
[353397717,1739814650926,-500.0,0.0001378,2]
[353397718,1739814650936,-500.0,0.0001378,2]
[353397719,1739814650945,-500.0,0.0001378,2]
[353397720,1739814650954,-1037.85,0.0001378,2]
[353397721,1739814650963,-500.0,0.0001378,2]
[353397722,1739814650972,-1002.82,0.0001378,2]
[353397723,1739814650982,-693.4,0.0001378,2]
[353397724,1739814650992,-500.0,0.0001378,2]
[353397725,1739814651002,-506.13060911,0.0001378,2]
[353397726,1739814651011,-500.0,0.0001378,2]
[353397727,1739814651019,-500.0,0.0001378,2]
[353397728,1739814651030,-500.0,0.0001378,2]
[353397729,1739814651039,-591.96,0.0001378,2]
[353397730,1739814651048,-500.0,0.0001378,2]
[353397731,1739814651057,-582.39,0.0001378,2]
[353397732,1739814651066,-500.0,0.0001378,2]
[353397733,1739814651075,-500.0,0.0001378,2]
[353397734,1739814651084,-500.0,0.0001378,2]
[353397735,1739814651095,-1123.18,0.0001378,2]
[353397736,1739814651104,-673.13,0.0001378,2]
[353397737,1739814651113,-500.0,0.0001378,2]
[353397738,1739814651122,-1139.32,0.0001378,2]
[353397739,1739814651131,-500.0,0.0001378,2]
[353397740,1739814651140,-500.0,0.0001378,2]
[353397741,1739814651150,-611.09,0.0001378,2]
[353397742,1739814651159,-500.0,0.0001378,2]
[353397743,1739814651168,-500.0,0.0001378,2]
[353397744,1739814651177,-2251.830358,0.0001378,2]
[353397745,1739814651186,-500.0,0.0001378,2]
[353397746,1739814651195,-919.3,0.0001378,2]
[353397747,1739814651205,-500.0,0.0001378,2]
[353397748,1739814651214,-847.69,0.0001378,2]
[353397749,1739814651224,-1213.16,0.0001378,2]
[353397750,1739814651233,-500.0,0.0001378,2]
[353397751,1739814651242,-1294.06,0.0001378,2]
[353397752,1739814651254,-966.89,0.0001378,2]
[353397753,1739814651264,-500.0,0.0001378,2]
[353397754,1739814651274,-500.0,0.0001378,2]
[353397755,1739814651284,-1073.02,0.0001378,2]
[353397756,1739814651294,-500.0,0.0001378,2]
[353397757,1739814651304,-500.0,0.0001378,2]
[353397758,1739814651313,-500.0,0.0001378,2]
[353397759,1739814651323,-964.83,0.0001378,2]
[353397760,1739814651333,-1177.57,0.0001378,2]
[353397761,1739814651343,-500.0,0.0001378,2]
[353397762,1739814651354,-500.0,0.0001378,2]
[353397763,1739814651363,-500.0,0.0001378,2]
[353397764,1739814651373,-500.0,0.0001378,2]
[353397765,1739814651384,-500.0,0.0001378,2]
[353397766,1739814651394,-1555.21,0.0001378,2]
[353397767,1739814651404,-500.0,0.0001378,2]
[353397768,1739814651414,-1139.16,0.0001378,2]
[353397769,1739814651423,-500.0,0.0001378,2]
[353397770,1739814651433,-500.0,0.0001378,2]
[353397771,1739814651442,-1186.89,0.0001378,2]
[353397772,1739814651452,-500.0,0.0001378,2]
[353397773,1739814651462,-500.0,0.0001378,2]
[353397774,1739814651471,-500.0,0.0001378,2]
[353397775,1739814651482,-1115.18,0.0001378,2]
[353397776,1739814651491,-829.88,0.0001378,2]
[353397777,1739814651500,-500.0,0.0001378,2]
[353397778,1739814651509,-332.93097159,0.0001378,2]
[353397779,1739814651519,-1000.0,0.0001378,2]
[353397780,1739814651529,-1551.54,0.0001378,2]
[353397781,1739814651539,-823.11,0.0001378,2]
[353397782,1739814651548,-500.0,0.0001378,2]
[353397783,1739814651558,-1830.74,0.0001378,2]
[353397784,1739814651568,-634.69,0.0001378,2]
[353397785,1739814651577,-500.0,0.0001378,2]
[353397786,1739814651586,-1332.28,0.0001378,2]
[353397787,1739814651595,-500.0,0.0001378,2]
[353397788,1739814651605,-500.0,0.0001378,2]
[353397789,1739814651614,-500.0,0.0001378,2]
[353397790,1739814651623,-816.84,0.0001378,2]
[353397791,1739814651632,-292.34041005,0.0001378,2]
[353397792,1739814651642,-1077.18,0.0001378,2]
[353397793,1739814651653,-4465.06,0.0001378,2]
[353397794,1739814651662,-500.0,0.0001378,2]
[353397795,1739814651671,-500.0,0.0001378,2]
[353397796,1739814651681,-500.0,0.0001378,2]
[353397797,1739814651690,-500.0,0.0001378,2]
[353397798,1739814651699,-500.0,0.0001378,2]
[353397799,1739814651708,-844.39,0.0001378,2]
[353397800,1739814651718,-500.0,0.0001378,2]
[353397801,1739814651727,-500.0,0.0001378,2]
[353397802,1739814651737,-500.0,0.0001378,2]
[353397803,1739814651747,-1204.38,0.0001378,2]
[353397804,1739814651756,-1252.57,0.0001378,2]
[353397805,1739814651765,-1303.29,0.0001378,2]
[353397806,1739814651775,-500.0,0.0001378,2]
[353397807,1739814651784,-500.0,0.0001378,2]
[353397808,1739814651793,-1704.12,0.0001378,2]
[353397809,1739814651803,-500.0,0.0001378,2]
[353397810,1739814651812,-500.0,0.0001378,2]
[353397811,1739814651822,-500.0,0.0001378,2]
[353397812,1739814651832,-500.0,0.0001378,2]
[353397813,1739814651841,-500.0,0.0001378,2]
[353397814,1739814651850,-500.0,0.0001378,2]
[353397815,1739814651861,-842.17,0.0001378,2]
[353397816,1739814651870,-1231.03,0.0001378,2]
[353397817,1739814651879,-1508.3,0.0001378,2]
[353397818,1739814651889,-1018.89,0.0001378,2]
[353397819,1739814651898,-500.0,0.0001378,2]
[353397820,1739814651908,-500.0,0.0001378,2]
[353397821,1739814651919,-500.0,0.0001378,2]
[353397822,1739814651929,-1059.38,0.0001378,2]
[353397823,1739814651939,-500.0,0.0001378,2]
[353397824,1739814651949,-881.63,0.0001378,2]
[353397825,1739814651960,-500.0,0.0001378,2]
[353397826,1739814651970,-642.97669875,0.0001378,2]
[353397827,1739814652536,-500.0,0.00013698,2]
[353397828,1739814652547,-500.0,0.00013698,2]
[353397829,1739814652557,-648.88330125,0.0001378,2]
[353397830,1739814652566,-500.0,0.0001378,2]
[353397831,1739814652575,-500.0,0.0001378,2]
[353397832,1739814652585,-500.0,0.0001378,2]
[353397833,1739814652596,-547.9,0.0001378,2]
[353397834,1739814652607,-1346.41,0.0001378,2]
[353397835,1739814652616,-1641.46,0.0001378,2]
[353397836,1739814652626,-662.51,0.0001378,2]
[353397837,1739814652637,-500.0,0.0001378,2]
[353397838,1739814652647,-500.0,0.0001378,2]
[353397839,1739814652656,-332.74233914,0.0001378,2]
[353397840,1739814652666,-500.0,0.0001378,2]
[353397841,1739814652675,-500.0,0.0001378,2]
[353397842,1739814652685,-1557.28,0.0001378,2]
[353397843,1739814652694,-703.36,0.0001378,2]
[353397844,1739814652704,-3071.92,0.0001378,2]
[353397845,1739814652713,-500.0,0.0001378,2]
[353397846,1739814652723,-677.72,0.0001378,2]
[353397847,1739814652732,-500.0,0.0001378,2]
[353397848,1739814652742,-500.0,0.0001378,2]
[353397849,1739814652751,-1183.98,0.0001378,2]
[353397850,1739814652761,-525.19889091,0.0001378,2]
[353397851,1739814652770,-1070.37,0.0001378,2]
[353397852,1739814652780,-500.0,0.0001378,2]
[353397853,1739814652789,-500.0,0.0001378,2]
[353397854,1739814652798,-642.01,0.0001378,2]
[353397855,1739814652808,-500.0,0.0001378,2]
[353397856,1739814652817,-500.0,0.0001378,2]
[353397857,1739814652826,-500.0,0.0001378,2]
[353397858,1739814652836,-500.0,0.0001378,2]
[353397859,1739814652846,-500.0,0.0001378,2]
[353397860,1739814652855,-500.0,0.0001378,2]
[353397861,1739814652865,-1154.73,0.0001378,2]
[353397862,1739814652874,-500.0,0.0001378,2]
[353397863,1739814652884,-594.2,0.0001378,2]
[353397864,1739814652895,-1258.05,0.0001378,2]
[353397865,1739814652904,-1627.58,0.0001378,2]
[353397866,1739814652914,-1104.87,0.0001378,2]
[353397867,1739814652923,-500.0,0.0001378,2]
[353397868,1739814652933,-500.0,0.0001378,2]
[353397869,1739814652942,-500.0,0.0001378,2]
[353397870,1739814652954,-500.0,0.0001378,2]
[353397871,1739814652964,-673.56,0.0001378,2]
[353397872,1739814652973,-268.03021339,0.0001378,2]
[353397873,1739814652983,-500.0,0.0001378,2]
[353397874,1739814652995,-500.0,0.0001378,2]
[353397875,1739814653005,-500.0,0.0001378,2]
[353397876,1739814653016,-848.45,0.0001378,2]
[353397877,1739814653026,-500.0,0.0001378,2]
[353397878,1739814653036,-1837.88,0.0001378,2]
[353397879,1739814653046,-500.0,0.0001378,2]
[353397880,1739814653057,-1662.42,0.0001378,2]
[353397881,1739814653066,-340.66543236,0.0001378,2]
[353397882,1739814653076,-893.2,0.0001378,2]
[353397883,1739814653085,-500.0,0.0001378,2]
[353397884,1739814653094,-500.0,0.0001378,2]
[353397885,1739814653103,-500.0,0.0001378,2]
[353397886,1739814653113,-1184.64,0.0001378,2]
[353397887,1739814653122,-818.04,0.0001378,2]
[353397888,1739814653131,-500.0,0.0001378,2]
[353397889,1739814653141,-500.0,0.0001378,2]
[353397890,1739814653153,-500.0,0.0001378,2]
[353397891,1739814653162,-500.0,0.0001378,2]
[353397892,1739814653171,-642.46,0.0001378,2]
[353397893,1739814653180,-1191.1,0.0001378,2]
[353397894,1739814653189,-500.0,0.0001378,2]
[353397895,1739814653198,-500.0,0.0001378,2]
[353397896,1739814653207,-500.0,0.0001378,2]
[353397897,1739814653216,-500.0,0.0001378,2]
[353397898,1739814653226,-710.74,0.0001378,2]
[353397899,1739814653235,-500.0,0.0001378,2]
[353397900,1739814653247,-500.0,0.0001378,2]
[353397901,1739814653261,-562.74310344,0.0001378,2]
[353397902,1739814653270,-500.0,0.0001378,2]
[353397903,1739814653279,-500.0,0.0001378,2]
[353397904,1739814653288,-500.0,0.0001378,2]
[353397905,1739814653298,-1075.41,0.0001378,2]
[353397906,1739814653307,-500.0,0.0001378,2]
[353397907,1739814653316,-263.69504371,0.0001378,2]
[353397908,1739814824558,470.79678848,0.000205,120]
[353397915,1739815699887,-4661.3589,8.836e-05,2]
[353397916,1739815699912,-682.5277,8.851e-05,2]
[353397917,1739815699936,-15656.1134,8.973e-05,2]
[353397923,1739815832073,-448.3426429,8.851e-05,2]
[353397925,1739815832083,-339.3398,8.973e-05,2]
[353397926,1739815832092,-700.0,9.868e-05,2]
[353397927,1739815832101,-56.78632711,9.868e-05,2]
[353397928,1739815832127,-743.21367289,9.868e-05,2]
[353397929,1739815832136,-550.0,0.0001,2]
[353397930,1739815832145,-225.86,0.00010137,2]
[353397931,1739815832154,-1159.55,0.00010884,2]
[353397932,1739815832163,-490.73,0.00010959,2]
[353397933,1739815832172,-500.0,0.00010964,2]
[353397934,1739815832182,-494.07,0.00010964,2]
[353397935,1739815832191,-505.78,0.00010964,2]
[353397936,1739815832200,-490.06,0.00010964,2]
[353397937,1739815832209,-507.7,0.00010964,2]
[353397938,1739815832218,-448.34264289,0.00011078,2]
[353397939,1739815832473,-368.5195979,0.00011238,2]
[353397940,1739815832486,-331.4804021,0.00011238,2]
[353397941,1739815832496,-800.0,0.00011238,2]
[353397942,1739815832508,-4300.5195979,0.0001173,2]
[353397946,1739815832530,-1770.9000003,0.0001173,2]
[353397948,1739815832542,-2244.7304018,0.0001173,2]
[353397950,1739815832551,-5611.17,0.00011748,2]
[353397952,1739815832560,-665.5,0.00011768,2]
[353397954,1739815832569,-542.42,0.0001178,2]
[353397956,1739815832578,-3032.98,0.00011783,2]
[353397957,1739815832588,-6818.86,0.00011813,2]
[353397959,1739815832597,-1000.0,0.0001183,2]
[353397961,1739815832606,-1264.8882452,0.00011842,2]
[353397995,1739815832939,-330.67,0.00011842,2]
[353397998,1739815832957,-404.4417548,0.00011842,2]
[353398000,1739815832966,-798.95,0.00011855,2]
[353398002,1739815832976,-600.0,0.00012,2]
[353398004,1739815832986,-3778.0,0.00012168,2]
[353398006,1739815832995,-250.0,0.00012228,2]
[353398008,1739815833006,-259.15,0.00012307,2]
[353398010,1739815833015,-157.98,0.00012389,2]
[353398012,1739815833024,-334.39022482,0.00012466,2]
[353398014,1739815833037,-38.60977518,0.00012466,2]
[353398016,1739815833048,-150.0,0.00012526,2]
[353398018,1739815833058,-150.0,0.00012526,2]
[353398020,1739815833068,-150.0,0.00012526,2]
[353398022,1739815833078,-150.0,0.00012567,2]
[353398025,1739815833088,-209.63,0.00012567,2]
[353398026,1739815833098,-700.0,0.00012608,2]
[353398028,1739815833108,-800.0,0.00012608,2]
[353398030,1739815833118,-150.0,0.00012761,2]
[353398032,1739815833128,-250.0,0.00012777,2]
[353398034,1739815833137,-3675.11,0.00012835,2]
[353398037,1739815833148,-986.71,0.00013041,2]
[353398039,1739815833157,-1159.55,0.00013148,2]
[353398041,1739815833167,-150.0,0.00013222,2]
[353398043,1739815833178,-150.0,0.00013222,2]
[353398045,1739815833189,-152.0,0.00013258,3]
[353398047,1739815833198,-778.14214482,0.00013309,2]
[353398049,1739815833210,-221.85785518,0.00013309,2]
[353398050,1739815833220,-336.78290716,0.00013404,2]
[353398051,1739815833244,-111.55973573,0.00013404,2]
[353398052,1739815833255,-370.63538678,0.00013479,2]
[353398053,1739815833265,-1708.79398511,0.00013479,2]
[353398054,1739815833277,-260.0045197,0.00013479,2]
[353398055,1739815833291,-1275.78929519,0.00013479,2]
[353398056,1739815833300,-150.44,0.00013493,2]
[353398057,1739815833310,-272.80345776,0.000135,4]
[353398058,1739815833423,-3357.29830783,0.000135,4]
[353398062,1739815838012,-69.89823441,0.000135,4]
[353398063,1739815838022,-186.9761478,0.00013504,2]
[353398064,1739815838031,-151.63682877,0.00013598,2]
[353398065,1739815838042,-12.30565017,0.00013598,2]
[353398066,1739815838052,-316.93712562,0.00013598,2]
[353398067,1739815838061,-4210.3277556,0.00013598,2]
[353398068,1739815838071,-1174.59373222,0.000136,3]
[353398069,1739815838082,-852.80100159,0.000136,3]
[353398070,1739815838093,-7053.23970044,0.000136,3]
[353398071,1739815838105,-393.69097478,0.000136,3]
[353398072,1739815838116,-525.67459097,0.000136,3]
[353398073,1739815838126,-1195.07487345,0.000136,4]
[353398074,1739815838137,-607.97363732,0.000136,4]
[353398075,1739815838149,-5596.95148923,0.000136,4]
[353398076,1739815838159,-4000.0,0.0001364,2]
[353398077,1739815838168,-255.0,0.00013661,2]
[353398078,1739815838178,-500.0,0.00013691,2]
[353398079,1739815838187,-500.0,0.00013691,2]
[353398080,1739815838197,-375.77978438,0.00013691,2]
[353398081,1739815838207,-500.0,0.00013691,2]
[353398082,1739815838218,-500.0,0.00013691,2]
[353398083,1739815838228,-454.22022995,0.00013691,2]
[353398084,1739815838237,-500.0,0.00013691,2]
[353398085,1739815838247,-500.0,0.00013691,2]
[353398086,1739815838256,-231.77009702,0.00013691,2]
[353398087,1739815838269,-165.57912809,0.00013691,2]
[353398088,1739815838279,-481.6318694,0.00013691,2]
[353398089,1739815838288,-500.0,0.00013691,2]
[353398090,1739815838298,-500.0,0.00013691,2]
[353398091,1739815838308,-500.0,0.00013691,2]
[353398092,1739815838318,-500.0,0.00013691,2]
[353398093,1739815838327,-500.0,0.00013691,2]
[353398094,1739815838337,-500.0,0.00013691,2]
[353398095,1739815838346,-10191.94228177,0.00013692,2]
[353398096,1739815838358,-1008.96010854,0.00013692,2]
[353398097,1739815838386,-5520.16190237,0.00013692,2]
[353398098,1739815838401,-496.82691368,0.00013692,2]
[353398100,1739815838413,-2692.5966,0.00013692,2]
[353398103,1739815838424,-6817.20419796,0.00013692,2]
[353398105,1739815838436,-404017.80704979,0.00013692,2]
[353398107,1739815838445,-500.0,0.00013698,2]
[353398109,1739815838455,-500.0,0.00013698,2]
[353398111,1739815838464,-500.0,0.00013698,2]
[353398113,1739815838473,-500.0,0.00013698,2]
[353398115,1739815838483,-500.0,0.00013698,2]
[353398117,1739815838492,-500.0,0.00013698,2]
[353398119,1739815838509,-503.01139517,0.00013698,2]
[353398121,1739815838519,-500.0,0.00013698,2]
[353398123,1739815838529,-500.0,0.00013698,2]
[353398125,1739815838538,-500.0,0.00013698,2]
[353398127,1739815838548,-500.0,0.00013698,2]
[353398129,1739815838558,-500.0,0.00013698,2]
[353398131,1739815838567,-500.0,0.00013698,2]
[353398132,1739815838576,-595.46,0.00013698,2]
[353398135,1739815838586,-500.0,0.00013698,2]
[353398137,1739815838596,-500.0,0.00013698,2]
[353398139,1739815838606,-500.0,0.00013698,2]
[353398141,1739815838616,-500.0,0.00013698,2]
[353398143,1739815838626,-500.0,0.00013698,2]
[353398145,1739815838636,-500.0,0.00013698,2]
[353398147,1739815838649,-500.0,0.00013698,2]
[353398149,1739815838658,-500.0,0.00013698,2]
[353398151,1739815838667,-500.0,0.00013698,2]
[353398153,1739815838677,-500.0,0.00013698,2]
[353398155,1739815838687,-160.05,0.00013698,2]
[353398157,1739815838698,-500.0,0.00013698,2]
[353398159,1739815838707,-500.0,0.00013698,2]
[353398161,1739815838717,-500.0,0.00013698,2]
[353398162,1739815838730,-500.0,0.00013698,2]
[353398164,1739815838740,-500.0,0.00013698,2]
[353398166,1739815838750,-500.0,0.00013698,2]
[353398168,1739815838761,-500.0,0.00013698,2]
[353398170,1739815838770,-500.0,0.00013698,2]
[353398172,1739815838780,-500.0,0.00013698,2]
[353398174,1739815838789,-500.0,0.00013698,2]
[353398176,1739815838797,-500.0,0.00013698,2]
[353398178,1739815838807,-500.0,0.00013698,2]
[353398180,1739815838816,-500.0,0.00013698,2]
[353398182,1739815838826,-435.92,0.00013698,2]
[353398184,1739815838835,-493.45,0.00013698,2]
[353398186,1739815838844,-353.76,0.00013698,2]
[353398188,1739815838855,-500.0,0.00013698,2]
[353398190,1739815838864,-500.0,0.00013698,2]
[353398192,1739815838874,-1029.48,0.00013698,2]
[353398194,1739815838884,-500.0,0.00013698,2]
[353398197,1739815838894,-504.67,0.00013698,2]
[353398198,1739815838904,-500.0,0.00013698,2]
[353398201,1739815838913,-577.71,0.00013698,2]
[353398202,1739815838923,-659.19,0.00013698,2]
[353398204,1739815838932,-500.0,0.00013698,2]
[353398206,1739815838941,-697.7,0.00013698,2]
[353398207,1739815838950,-500.0,0.00013698,2]
[353398208,1739815838959,-647.24243988,0.00013698,2]
[353398209,1739815838969,-501.93,0.00013698,2]
[353398210,1739815838978,-737.52,0.00013698,2]
[353398211,1739815838987,-500.0,0.00013698,2]
[353398212,1739815838995,-170.80312796,0.00013698,2]
[353398236,1739815839285,-329.19687204,0.00013698,2]
[353398239,1739815839294,-500.0,0.00013698,2]
[353398240,1739815839303,-500.0,0.00013698,2]
[353398242,1739815839313,-500.0,0.00013698,2]
[353398244,1739815839322,-500.0,0.00013698,2]
[353398246,1739815839332,-500.0,0.00013698,2]
[353398248,1739815839341,-500.0,0.00013698,2]
[353398250,1739815839350,-500.0,0.00013698,2]
[353398252,1739815839360,-340.89044306,0.00013698,2]
[353398254,1739815839369,-500.0,0.00013698,2]
[353398256,1739815839378,-500.0,0.00013698,2]
[353398258,1739815839387,-500.0,0.00013698,2]
[353398260,1739815839396,-500.0,0.00013698,2]
[353398262,1739815839405,-500.0,0.00013698,2]
[353398263,1739815839414,-724.27,0.00013698,2]
[353398265,1739815839424,-500.0,0.00013698,2]
[353398267,1739815839433,-500.0,0.00013698,2]
[353398269,1739815839443,-500.0,0.00013698,2]
[353398271,1739815839453,-500.0,0.00013698,2]
[353398273,1739815839463,-500.0,0.00013698,2]
[353398275,1739815839473,-607.60606993,0.00013698,2]
[353398277,1739815839482,-146.44361497,0.00013698,2]
[353398281,1739815839509,-353.55638503,0.00013698,2]
[353398283,1739815839519,-407.89570075,0.00013698,2]
[353398285,1739815839530,-284.48429925,0.00013698,2]
[353398287,1739815839539,-500.0,0.00013698,2]
[353398289,1739815839549,-398.58694169,0.00013698,2]
[353398291,1739815839562,-101.41305831,0.00013698,2]
[353398293,1739815839572,-500.0,0.00013698,2]
[353398295,1739815839582,-500.0,0.00013698,2]
[353398297,1739815839592,-500.0,0.00013698,2]
[353398299,1739815839601,-249.51806879,0.00013698,2]
[353398302,1739815839613,-250.48193121,0.00013698,2]
[353398304,1739815839622,-500.0,0.00013698,2]
[353398306,1739815839632,-404.51806879,0.00013698,2]
[353398308,1739815839644,-95.48193121,0.00013698,2]
[353398310,1739815839656,-500.0,0.00013698,2]
[353398312,1739815839666,-500.0,0.00013698,2]
[353398314,1739815839675,-500.0,0.00013698,2]
[353398316,1739815839684,-500.0,0.00013698,2]
[353398318,1739815839694,-500.0,0.00013698,2]
[353398320,1739815839703,-500.0,0.00013698,2]
[353398322,1739815839712,-638.96204097,0.00013698,2]
[353398324,1739815839722,-500.0,0.00013698,2]
[353398325,1739815839733,-500.0,0.00013698,2]
[353398327,1739815839743,-500.0,0.00013698,2]
[353398329,1739815839754,-500.0,0.00013698,2]
[353398331,1739815839765,-500.0,0.00013698,2]
[353398333,1739815839774,-500.0,0.00013698,2]
[353398335,1739815839784,-210.46172286,0.00013698,2]
[353398337,1739815839794,-500.0,0.00013698,2]
[353398339,1739815839803,-500.0,0.00013698,2]
[353398341,1739815839813,-652.56,0.00013698,2]
[353398343,1739815839823,-500.0,0.00013698,2]
[353398345,1739815839832,-500.0,0.00013698,2]
[353398347,1739815839842,-500.0,0.00013698,2]
[353398349,1739815839852,-500.0,0.00013698,2]
[353398352,1739815839863,-500.0,0.00013698,2]
[353398354,1739815839873,-500.0,0.00013698,2]
[353398356,1739815839883,-506.07,0.00013698,2]
[353398357,1739815839892,-500.0,0.00013698,2]
[353398359,1739815839901,-500.0,0.00013698,2]
[353398361,1739815839910,-500.0,0.00013698,2]
[353398363,1739815839919,-500.0,0.00013698,2]
[353398365,1739815839928,-500.0,0.00013698,2]
[353398367,1739815839938,-500.0,0.00013698,2]
[353398369,1739815839947,-500.0,0.00013698,2]
[353398371,1739815839956,-571.18,0.00013698,2]
[353398373,1739815839965,-500.0,0.00013698,2]
[353398376,1739815839974,-500.0,0.00013698,2]
[353398379,1739815839984,-500.0,0.00013698,2]
[353398382,1739815839994,-507.51,0.00013698,2]
[353398384,1739815840003,-622.80806401,0.00013698,2]
[353398387,1739815840014,-589.27,0.00013698,2]
[353398389,1739815840024,-500.0,0.00013698,2]